[Event "Asian Amateur-ch Open 2022"]
[Site "Muscat"]
[Date "2022.10.03"]
[Round "6.14"]
[White "Atharv Bansal"]
[Black "Nadeem Aziz"]
[Result "1/2-1/2"]
[ECO "B48"]
[WhiteElo "1164"]
[BlackElo "1797"]
[Annotator "NA RC COMBH"]
[PlyCount "128"]
[EventDate "2022.09.29"]
[EventType "swiss"]
[SourceTitle "playchess.com"]
[Source "ChessBase"]
[SourceQuality "1"]
[TimeControl "5400+30"]

1. e4 {[%emt 0:00:05]} c5 {[%emt 0:00:01]} 2. Nf3 {[%emt 0:01:00]} e6 {[%emt 0:00:03]} 3. d4 {[%emt 0:00:32]} cxd4 {[%emt 0:00:04]} 4. Nxd4 {[%emt 0:00:07]} Nc6 {[%emt 0:00:04]} 5. Nc3 {[%emt 0:00:31]} Qc7 {[%emt 0:00:03]} 6. Be2 {[%emt 0:00:45]} a6 {[%emt 0:00:09]} 7. O-O {[%emt 0:00:52]} Nf6 {[%emt 0:00:10]} 8. a3 {[%emt 0:00:50]} Be7 {[%emt 0:00:38]} 9. Be3 {[%emt 0:01:58]} d6 {[%emt 0:01:08]} 10. f4 {[%emt 0:02:03]} Na5 {[%emt 0:02:34]} 11. Qd3 {[%emt 0:17:13]} O-O {[%emt 0:05:03]} 12. Kh1 {[%emt 0:03:59]} b5 {[%emt 0:01:44]} 13. b4 {[%emt 0:00:45]} Nc6 {[%emt 0:04:34]} 14. Nxc6 {[%emt 0:02:41]} Qxc6 {[%emt 0:00:02]} 15. Bf3 {[%emt 0:00:22]} Bb7 {[%emt 0:02:07]} 16. e5 {[%emt 0:00:39]} Nd5 {[%emt 0:00:10]} 17. Nxd5 {[%emt 0:01:46]} exd5 {[%emt 0:00:03]} 18. exd6 {[%emt 0:01:45]} Qxd6 {[%emt 0:10:30]} 19. Bc5 {[%emt 0:00:45]} Qd7 {[%emt 0:00:03]} 20. Bxe7 {[%emt 0:10:34]} Qxe7 {[%emt 0:06:18]} 21. Rae1 {[%emt 0:00:40]} Qd6 {[%emt 0:14:53]} 22. Re5 {[%emt 0:04:33]} Rae8 {[%emt 0:24:58]} 23. Bxd5 {[%emt 0:01:57]} Bxd5 {[%emt 0:00:12]} 24. Qxd5 {[%emt 0:01:10]} Qxd5 {[%emt 0:00:07]} 25. Rxd5 {[%emt 0:00:05]} Re2 {[%emt 0:03:18]} 26. Rd6 {[%emt 0:00:52]} h6 {[%emt 0:03:29]} 27. Rxa6 {[%emt 0:01:59]} Rc8 {[%emt 0:00:02]} 28. Rc1 {[%emt 0:01:41]} Rcxc2 {[%emt 0:00:24]} 29. Rg1 {[%emt 0:01:02]} Ra2 {[%emt 0:00:41]} 30. h3 {[%emt 0:01:20]} Rf2 {[%emt 0:00:46]} 31. Ra5 {[%emt 0:04:30]} Rxf4 {[%emt 0:00:26]} 32. Rxb5 {[%emt 0:00:15]} Rxa3 {[%emt 0:03:08]} 33. Re1 {[%emt 0:07:47]} Rb3 {[%emt 0:01:57]} 34. Re8+ {[%emt 0:00:19]} Kh7 {[%emt 0:00:01]} 35. Re7 {[%emt 0:00:19]} Kg6 {[%emt 0:03:24]} 36. Rb6+ {[%emt 0:00:34]} Rf6 {[%emt 0:01:07]} 37. Rxf6+ {[%emt 0:00:17]} Kxf6 {[%emt 0:00:02]} 38. Rb7 {[%emt 0:00:09]} h5 {[%emt 0:01:20]} 39. h4 {[%emt 0:01:26]} g6 {[%emt 0:00:41]} 40. b5 {[%emt 0:00:45]} Ke6 {[%emt 0:00:13]} 41. b6 {[%emt 0:00:36]} f6 {[%emt 0:00:02]} 42. Rb8 {[%emt 0:00:23]} Kf5 {[%emt 0:00:05]} 43. Kh2 {[%emt 0:02:45]} Kg4 {[%emt 0:00:06]} 44. b7 {[%emt 0:00:24]} g5 {[%emt 0:02:00]} 45. hxg5 {[%emt 0:04:39]} fxg5 {[%emt 0:00:02]} 46. Ra8 {[%emt 0:00:15]} Rxb7 {[%emt 0:00:07]} 47. Ra4+ {[%emt 0:00:06]} Kf5 {[%emt 0:00:06]} 48. Ra5+ {[%emt 0:00:03]} Kf6 {[%emt 0:00:15]} 49. Ra6+ {[%emt 0:00:02]} Kg7 {[%emt 0:00:28]} 50. Ra5 {[%emt 0:00:51]} Kh6 {[%emt 0:00:16]} 51. Ra6+ {[%emt 0:00:05]} Kh7 {[%emt 0:00:28]} 52. Kg3 {[%emt 0:03:51]} Rf7 {[%emt 0:00:07]} 53. Rb6 {[%emt 0:00:14]} Kg7 {[%emt 0:00:04]} 54. Kh2 {[%emt 0:04:32]} Rf6 {[%emt 0:00:02]} 55. Rb3 {[%emt 0:00:13]} Kg6 {[%emt 0:00:05]} 56. Rc3 {[%emt 0:00:40]} Re6 {[%emt 0:00:09]} 57. Rf3 {[%emt 0:00:32]} g4 {[%emt 0:01:25]} 58. Ra3 {[%emt 0:00:32]} Re2 {[%emt 0:01:14]} 59. Kg3 {[%emt 0:00:34]} Re5 {[%emt 0:00:11]} 60. Kh4 {[%emt 0:00:48]} Re2 {[%emt 0:04:17]} 61. Ra6+ {[%emt 0:00:08]} Kf5 {[%emt 0:01:06]} 62. Ra5+ {[%emt 0:00:17]} Kg6 {[%emt 0:03:47]} 63. Ra6+ {[%emt 0:00:06]} Kf5 {[%emt 0:00:17]} 64. Ra5+ {[%emt 0:00:17]} Kg6 {[%emt 0:00:03]} 1/2-1/2

[Event "Asian Amateur-ch Open 2022"]
[Site "Muscat"]
[Date "2022.10.03"]
[Round "6.15"]
[White "Jaradat, Othman"]
[Black "Reyes, Danilo G."]
[Result "1/2-1/2"]
[ECO "B07"]
[WhiteElo "1751"]
[BlackElo "1584"]
[Annotator "NA RC COMBH"]
[PlyCount "127"]
[EventDate "2022.09.29"]
[EventType "swiss"]
[SourceTitle "playchess.com"]
[Source "ChessBase"]
[SourceQuality "1"]
[TimeControl "5400+30"]

1. e4 {[%emt 0:00:03]} d6 {[%emt 0:00:18]} 2. d4 {[%emt 0:00:08]} Nf6 {[%emt 0:00:08]} 3. Nc3 {[%emt 0:00:13]} g6 {[%emt 0:00:06]} 4. f3 {[%emt 0:01:13]} c6 {[%emt 0:00:06]} 5. Be3 {[%emt 0:00:19]} b5 {[%emt 0:00:05]} 6. Qd2 {[%emt 0:00:34]} Qa5 {[%emt 0:00:16]} 7. a3 {[%emt 0:01:09]} a6 {[%emt 0:01:11]} 8. O-O-O {[%emt 0:02:42]} Nbd7 {[%emt 0:01:00]} 9. g4 {[%emt 0:00:28]} Bg7 {[%emt 0:13:22]} 10. g5 {[%emt 0:06:09]} Nh5 {[%emt 0:01:18]} 11. f4 {[%emt 0:08:03]} Rb8 {[%emt 0:13:09]} 12. Nge2 {[%emt 0:09:13]} b4 {[%emt 0:07:58]} 13. Na2 {[%emt 0:04:18]} c5 {[%emt 0:05:09]} 14. Kb1 {[%emt 0:03:48]} Qb6 {[%emt 0:09:15]} 15. axb4 {[%emt 0:15:42]} cxb4 {[%emt 0:04:29]} 16. d5 {[%emt 0:10:27]} Nc5 {[%emt 0:01:43]} 17. Bg2 {[%emt 0:06:46]} Bg4 {[%emt 0:04:42]} 18. Rde1 {[%emt 0:03:41]} b3 {[%emt 0:03:14]} 19. cxb3 {[%emt 0:03:13]} Bxe2 {[%emt 0:07:18]} 20. Rxe2 {[%emt 0:03:10]} Qxb3 {[%emt 0:02:08]} 21. Bd4 {[%emt 0:08:41]} Bxd4 {[%emt 0:04:59]} 22. Qxd4 {[%emt 0:00:20]} Qd3+ {[%emt 0:01:12]} 23. Qxd3 {[%emt 0:00:30]} Nxd3 {[%emt 0:00:09]} 24. Rd2 {[%emt 0:03:55]} Ndxf4 {[%emt 0:04:57]} 25. Rc1 {[%emt 0:02:13]} Nxg2 {[%emt 0:00:20]} 26. Rxg2 {[%emt 0:00:01]} Kd7 {[%emt 0:00:16]} 27. Rc6 {[%emt 0:01:36]} Rhc8 {[%emt 0:01:45]} 28. Rxa6 {[%emt 0:00:35]} f6 {[%emt 0:01:33]} 29. h4 {[%emt 0:00:55]} Rc4 {[%emt 0:01:07]} 30. gxf6 {[%emt 0:03:21]} Nxf6 {[%emt 0:00:22]} 31. Ra7+ {[%emt 0:01:02]} Ke8 {[%emt 0:01:38]} 32. e5 {[%emt 0:00:23]} dxe5 {[%emt 0:02:41]} 33. Re2 {[%emt 0:00:01]} Re4 {[%emt 0:01:53]} 34. Rxe4 {[%emt 0:00:54]} Nxe4 {[%emt 0:00:12]} 35. Kc2 {[%emt 0:01:07]} Nf6 {[%emt 0:02:18]} 36. Nc3 {[%emt 0:00:14]} Rc8 {[%emt 0:00:18]} 37. Kd3 {[%emt 0:00:46]} Rc5 {[%emt 0:01:04]} 38. b4 {[%emt 0:00:31]} Rc8 {[%emt 0:01:17]} 39. b5 {[%emt 0:00:26]} e4+ {[%emt 0:01:51]} 40. Kd4 {[%emt 0:00:57]} e3 {[%emt 0:00:43]} 41. b6 {[%emt 0:00:23]} Rxc3 {[%emt 0:00:42]} 42. Kxc3 {[%emt 0:00:37]} Nxd5+ {[%emt 0:00:09]} 43. Kd3 {[%emt 0:00:11]} Nxb6 {[%emt 0:00:28]} 44. Kxe3 {[%emt 0:00:09]} Kf7 {[%emt 0:01:40]} 45. Ke4 {[%emt 0:00:20]} Nc8 {[%emt 0:00:11]} 46. Ra5 {[%emt 0:01:12]} Nd6+ {[%emt 0:00:07]} 47. Kf4 {[%emt 0:00:05]} Kf6 {[%emt 0:01:17]} 48. Re5 {[%emt 0:00:49]} h5 {[%emt 0:00:16]} 49. Ra5 {[%emt 0:00:31]} Nf5 {[%emt 0:00:05]} 50. Ra6+ {[%emt 0:00:36]} e6 {[%emt 0:00:09]} 51. Ra8 {[%emt 0:00:40]} Nxh4 {[%emt 0:01:22]} 52. Rf8+ {[%emt 0:00:15]} Kg7 {[%emt 0:00:25]} 53. Re8 {[%emt 0:00:23]} Kf7 {[%emt 0:00:02]} 54. Rh8 {[%emt 0:00:37]} Nf5 {[%emt 0:01:03]} 55. Kg5 {[%emt 0:00:25]} Kg7 {[%emt 0:01:07]} 56. Re8 {[%emt 0:00:25]} Kf7 {[%emt 0:00:24]} 57. Rh8 {[%emt 0:00:04]} Ne7 {[%emt 0:00:11]} 58. Rh7+ {[%emt 0:00:35]} Ke8 {[%emt 0:01:47]} 59. Kf6 {[%emt 0:00:18]} Ng8+ {[%emt 0:00:33]} 60. Kxg6 {[%emt 0:01:11]} Ne7+ {[%emt 0:00:09]} 61. Kxh5 {[%emt 0:00:33]} Kd7 {[%emt 0:00:12]} 62. Kg5 {[%emt 0:00:31]} Kd6 {[%emt 0:00:01]} 63. Rh6 {[%emt 0:00:38]} Nd5 {[%emt 0:00:06]} 64. Rxe6+ {[%emt 0:01:15]} 1/2-1/2

[Event "Asian Amateur-ch Open 2022"]
[Site "Muscat"]
[Date "2022.10.03"]
[Round "6.16"]
[White "Al Amri, Mahad"]
[Black "Velavaa Ragavesh"]
[Result "0-1"]
[ECO "B75"]
[WhiteElo "1589"]
[BlackElo "1698"]
[Annotator "NA RC COMBH"]
[PlyCount "68"]
[EventDate "2022.09.29"]
[EventType "swiss"]
[SourceTitle "playchess.com"]
[Source "ChessBase"]
[SourceQuality "1"]
[TimeControl "5400+30"]

1. e4 {[%emt 0:03:54]} c5 {[%emt 0:00:25]} 2. Nf3 {[%emt 0:00:32]} d6 {[%emt 0:00:23]} 3. d4 {[%emt 0:00:38]} cxd4 {[%emt 0:00:38]} 4. Nxd4 {[%emt 0:00:03]} Nf6 {[%emt 0:00:17]} 5. Nc3 {[%emt 0:00:24]} g6 {[%emt 0:00:22]} 6. f3 {[%emt 0:00:39]} Bg7 {[%emt 0:00:33]} 7. Be3 {[%emt 0:00:58]} a6 {[%emt 0:00:33]} 8. Qd2 {[%emt 0:00:12]} h5 {[%emt 0:01:12]} 9. O-O-O {[%emt 0:00:14]} b5 {[%emt 0:00:59]} 10. h4 {[%emt 0:00:33]} Bb7 {[%emt 0:00:18]} 11. Kb1 {[%emt 0:03:36]} Nbd7 {[%emt 0:01:10]} 12. a3 {[%emt 0:01:18]} Rc8 {[%emt 0:01:26]} 13. Be2 {[%emt 0:01:13]} Ne5 {[%emt 0:01:33]} 14. Nb3 {[%emt 0:03:31]} Qc7 {[%emt 0:06:58]} 15. Qd4 {[%emt 0:09:02]} Nc4 {[%emt 0:05:23]} 16. Bxc4 {[%emt 0:00:54]} bxc4 {[%emt 0:00:09]} 17. Nc1 {[%emt 0:01:46]} Rb8 {[%emt 0:04:53]} 18. g4 {[%emt 0:05:06]} O-O {[%emt 0:07:29]} 19. gxh5 {[%emt 0:01:47]} Nxe4 {[%emt 0:03:01]} 20. Qxg7+ {[%emt 0:15:26]} Kxg7 {[%emt 0:00:18]} 21. fxe4 {[%emt 0:00:02]} e5 {[%emt 0:08:51]} 22. Rdg1 {[%emt 0:04:31]} Bxe4 {[%emt 0:03:24]} 23. Rh3 {[%emt 0:02:54]} Qb7 {[%emt 0:00:53]} 24. Nd1 {[%emt 0:00:33]} Bf3 {[%emt 0:01:40]} 25. b3 {[%emt 0:00:58]} Bxh5 {[%emt 0:00:09]} 26. Nb2 {[%emt 0:00:49]} cxb3 {[%emt 0:00:31]} 27. cxb3 {[%emt 0:00:12]} Qe4+ {[%emt 0:00:15]} 28. Ka2 {[%emt 0:00:06]} Rfc8 {[%emt 0:00:59]} 29. Ncd3 {[%emt 0:00:58]} Qd5 {[%emt 0:01:45]} 30. Nb4 {[%emt 0:00:23]} Qe6 {[%emt 0:00:10]} 31. Rhg3 {[%emt 0:01:10]} a5 {[%emt 0:00:14]} 32. N4d3 {[%emt 0:00:32]} Qxb3+ {[%emt 0:00:06]} 33. Ka1 {[%emt 0:00:06]} Qxa3+ {[%emt 0:00:04]} 34. Kb1 {[%emt 0:00:05]} Qxd3+ {[%emt 0:50:29]} 0-1

[Event "Asian Amateur-ch Open 2022"]
[Site "Muscat"]
[Date "2022.10.03"]
[Round "6.18"]
[White "Owlad, Ehsan"]
[Black "Zholdoshmamatov, Adilet"]
[Result "1-0"]
[ECO "D93"]
[WhiteElo "1962"]
[BlackElo "1654"]
[Annotator "TA"]
[PlyCount "77"]
[EventDate "2022.09.29"]
[EventType "swiss"]
[SourceTitle "playchess.com"]
[Source "ChessBase"]
[SourceQuality "1"]
[TimeControl "5400+30"]

{[%evp 13,77,-10,0,0,5,20,18,19,22,6,28,0,14,0,30,22,107,18,20,16,29,11,27,27,42,37,70,64,55,54,61,56,36,48,79,70,82,95,112,112,158,159,136,55,193,201,210,152,360,350,687,315,532,514,534,511,1230,1022,895,694,29989,29990,29990,29984,29991,29983]} 1. c4 {[%emt 0:00:16]} Nf6 {[%emt 0:00:18]} 2. Nc3 {[%emt 0:00:08]} g6 {[%emt 0:00:12]} 3. d4 {[%emt 0:00:26]} d5 {[%emt 0:00:12]} 4. Nf3 {[%emt 0:01:29]} Bg7 {[%emt 0:01:41]} 5. Bf4 {[%emt 0:00:54]} O-O {[%emt 0:00:43]} 6. e3 {[%emt 0:00:14]} c5 {[%emt 0:01:14]} 7. Be2 {[%emt 0:08:41]} Nc6 {[%emt 0:05:17]} (7... cxd4 {keeps more tension.} 8. Nxd4 dxc4 9. Bxc4 Qa5) 8. O-O {[%emt 0:00:21] D93: Grünfeld: 4 Nf3 Bg7 5 Bf4 0-0 6 e3.} Bg4 {[%emt 0:00:58]} 9. dxc5 {[%emt 0:02:40][%cal Rc4d5]} dxc4 {[%emt 0:04:14] [#]} 10. h3 $146 {[%emt 0:02:57] The position is equal.} ({Predecessor:} 10. Qa4 Nd5 11. Nxd5 Qxd5 12. Qxc4 Bxf3 13. gxf3 Qxc4 14. Bxc4 Bxb2 15. Rab1 Ba3 16. Bd5 Rfd8 17. Be4 f5 18. Bc2 Bxc5 19. Rxb7 Na5 20. Rb5 Bb6 21. e4 Rac8 22. Bd1 e6 {½-½ (22) Lau,U (2270)-Pielnik,R Dortmund 1993}) 10... Bxf3 {[%emt 0:01:53]} 11. Bxf3 {[%emt 0:00:13]} ({Reject} 11. gxf3 Qc8 $11) 11... Qa5 {[%emt 0:00:52]} 12. Rc1 {[%emt 0:03:00]} Rfd8 {[%emt 0:01:39]} 13. Qe2 {[%emt 0:00:51]} Qxc5 {[%emt 0:02:46]} 14. Na4 {[%emt 0:01:05][%csl LRc4,LRc5]} Qa5 {[%emt 0:02:42]} (14... Qb5 $1 $11 {keeps the balance.} 15. Qxc4 Qxc4 16. Rxc4 Nd5) 15. Bxc6 {[%emt 0:01:35]} ({White should try} 15. Qxc4 $16 {And now Nc5 would win.} Nd7 16. Bxc6 bxc6 17. Qxc6) 15... bxc6 $11 {[%emt 0:01:33]} 16. Qxc4 {[%emt 0:00:53]} Rac8 {[%emt 0:05:04]} 17. Nc3 {[%emt 0:08:29]} (17. Nc5 $5 {[%cal Rc5b7]} Qb5 18. Be5 $11) 17... Nd5 {[%emt 0:03:55]} 18. Nxd5 {[%emt 0:01:03]} Qxd5 {[%emt 0:01:17]} 19. b3 {[%emt 0:00:37]} Qxc4 {[%emt 0:07:05]} 20. Rxc4 {[%emt 0:00:09]} Rd2 {[%emt 0:00:31]} 21. Ra4 {[%emt 0:00:43]} e5 {[%emt 0:01:32]} 22. Bg3 {[%emt 0:00:38]} Rc7 {[%emt 0:01:20]} 23. Rc1 {[%emt 0:00:36]} f5 {[%emt 0:02:38]} 24. Rc5 {[%emt 0:03:14]} Re7 {[%emt 0:10:10]} 25. Rxc6 {[%emt 0:01:51]} g5 {[%emt 0:00:34] Prevents Bh4.} 26. f3 $1 {[%emt 0:12:11]} Rd1+ {[%emt 0:02:53] [#]} (26... Red7 $142) 27. Kh2 $1 $16 {[%emt 0:03:50] White is more active.} f4 {[%emt 0:01:58]} 28. Bf2 {[%emt 0:00:48]} (28. exf4 $16 exf4 29. Bf2) 28... Rf1 {[%emt 0:05:05]} ({Black should play} 28... e4 $1 $14) 29. Rc2 $18 {[%emt 0:02:17]} Rd7 {[%emt 0:04:16]} 30. e4 {[%emt 0:02:27]} g4 $2 {[%emt 0:07:28] Loses the game.} (30... Bf8 $16 31. g4 (31. Bxa7 Rdd1 $16) 31... Rfd1 32. Bxa7 Kf7) 31. hxg4 {[%emt 0:04:08]} Rd6 $2 {[%emt 0:01:32]} (31... Bf8 32. g3 (32. Bxa7 Rdd1 $18) 32... Rfd1 33. gxf4 exf4 34. Bxa7 Kf7) 32. g5 {[%emt 0:01:25]} (32. Rc8+ $142 Bf8 {[#]} 33. Rxf8+ $1 {[%mdl 512]} (33. Bh4 {is a self mate.} Rdd1) 33... Kxf8 34. Bc5) 32... h5 $2 {[%emt 0:09:11]} (32... a6 33. g3 fxg3+ 34. Kxg3 h6) 33. Rxa7 {[%emt 0:02:32]} Rdd1 {[%emt 0:04:12][%csl Gd1][%cal Rf1h1]} 34. g3 {[%emt 0:00:21] Black must now prevent Rc8+.} Kh7 {[%emt 0:01:20]} (34... Rc1 $142 35. Rd2 Rc8) 35. Kg2 {[%emt 0:00:53] Threatens to win with Rcc7.} fxg3 {[%emt 0:03:17]} 36. Kxg3 {[%emt 0:00:13]} Kg6 {[%emt 0:03:13]} 37. Rc6+ {[%emt 0:00:24] White mates.} Bf6 {[%emt 0:01:02]} 38. Rxf6+ {[%emt 0:01:29]} Kxg5 {[%emt 0:00:12]} 39. Rf5+ {[%emt 0:00:08] Weighted Error Value: White=0.38/Black=0.68} 1-0

[Event "Asian Amateur-ch Open 2022"]
[Site "Muscat"]
[Date "2022.10.03"]
[Round "6.20"]
[White "Sharaf, Khaleel"]
[Black "Al Balushi, Emad"]
[Result "1-0"]
[ECO "D11"]
[WhiteElo "1874"]
[BlackElo "1617"]
[Annotator "NA RC COMBH"]
[PlyCount "89"]
[EventDate "2022.09.29"]
[EventType "swiss"]
[SourceTitle "playchess.com"]
[Source "ChessBase"]
[SourceQuality "1"]
[TimeControl "5400+30"]

1. c4 {[%emt 0:00:05]} c6 {[%emt 0:16:53]} 2. d4 {[%emt 0:00:14]} d5 {[%emt 0:00:13]} 3. Nf3 {[%emt 0:00:10]} Nf6 {[%emt 0:00:25]} 4. g3 {[%emt 0:00:14]} Bf5 {[%emt 0:01:42]} 5. Nc3 {[%emt 0:00:39]} e6 {[%emt 0:03:37]} 6. Bg2 {[%emt 0:00:31]} Nbd7 {[%emt 0:03:41]} 7. Qb3 {[%emt 0:07:25]} Qb6 {[%emt 0:02:00]} 8. c5 {[%emt 0:00:02]} Qxb3 {[%emt 0:04:07] 8...Qc7 is the hot move.} 9. axb3 {[%emt 0:01:15]} Be7 {[%emt 0:02:56]} 10. b4 {[%emt 0:00:45]} Ne4 {[%emt 0:00:49] [#]} 11. Bf4 $146 {[%emt 0:07:17]} ({Predecessor:} 11. Nd2 Nxd2 12. Bxd2 Bf6 13. e3 e5 14. Ne2 O-O 15. Bc3 a6 16. f3 Rae8 17. h4 {0-1 (63) Chu,R (2590)-Ju,W (2587) China 2019}) 11... g5 {[%emt 0:03:48]} 12. Bc1 {[%emt 0:10:37]} g4 {[%emt 0:14:12]} 13. Ng1 {[%emt 0:04:52]} (13. Nh4 $142) 13... b6 {[%emt 0:07:34]} (13... Nxc3 $11 14. bxc3 h5) 14. h3 {[%emt 0:09:32]} Nxc3 {[%emt 0:03:28]} 15. bxc3 {[%emt 0:01:13]} O-O {[%emt 0:05:32]} 16. hxg4 {[%emt 0:01:26]} Bxg4 {[%emt 0:00:13]} 17. Nf3 {[%emt 0:01:16]} a5 {[%emt 0:05:56]} 18. Rb1 {[%emt 0:21:00]} ({Much worse is} 18. cxb6 axb4 19. Rxa8 Rxa8 $17) (18. bxa5 $11 bxa5 19. Nd2) 18... bxc5 {[%emt 0:06:32]} 19. bxc5 {[%emt 0:01:20]} Rfb8 {[%emt 0:03:11]} 20. Ra1 {[%emt 0:04:08]} Bf6 {[%emt 0:04:05]} 21. Nd2 {[%emt 0:04:38]} Bf5 {[%emt 0:01:56]} ({Black should play} 21... e5 $11 22. e3 exd4 23. exd4 a4) 22. e4 {[%emt 0:03:26]} dxe4 {[%emt 0:01:00]} (22... Bg6 $1 $14) 23. Nxe4 {[%emt 0:00:18]} Bxe4 {[%emt 0:00:50]} 24. Bxe4 {[%emt 0:00:03]} Nxc5 {[%emt 0:00:34]} 25. Bxh7+ {[%emt 0:01:09]} Kg7 {[%emt 0:01:06]} 26. Bc2 {[%emt 0:02:41]} Nb3 {[%emt 0:01:17]} 27. Bh6+ {[%emt 0:00:22]} Kg8 {[%emt 0:00:21]} 28. Ra4 {[%emt 0:01:21]} Bg7 {[%emt 0:02:38]} 29. Bf4 {[%emt 0:00:46]} Rb5 {[%emt 0:01:08]} 30. Bd6 {[%emt 0:01:50]} e5 {[%emt 0:01:35]} 31. Bh7+ {[%emt 0:01:03]} Kh8 {[%emt 0:00:22]} 32. Be4+ {[%emt 0:00:38]} Kg8 {[%emt 0:00:35]} 33. Bxc6 {[%emt 0:01:33]} Rb6 {[%emt 0:01:58]} 34. Bxa8 {[%emt 0:00:03]} Rxd6 {[%emt 0:00:15]} 35. d5 {[%emt 0:05:12]} e4 {[%emt 0:00:46]} 36. Kd1 {[%emt 0:01:54]} Bxc3 {[%emt 0:00:35]} 37. Kc2 {[%emt 0:00:35]} Nc5 {[%emt 0:00:13]} 38. Rc4 {[%emt 0:00:58]} Bb4 {[%emt 0:00:06] [#]} 39. Rb1 $1 {[%emt 0:00:32]} Kg7 {[%emt 0:00:59]} 40. Rbxb4 {[%emt 0:01:10]} axb4 {[%emt 0:00:08]} 41. Rxc5 {[%emt 0:00:04]} Rf6 {[%emt 0:00:45]} 42. Kb3 {[%emt 0:03:04]} Rxf2 {[%emt 0:00:12]} 43. d6 {[%emt 0:00:01]} Rf3+ {[%emt 0:01:06]} 44. Kxb4 {[%emt 0:00:25]} Rxg3 {[%emt 0:00:06]} 45. d7 {[%emt 0:01:35]} 1-0

[Event "Asian Amateur-ch Open 2022"]
[Site "Muscat"]
[Date "2022.10.03"]
[Round "6.21"]
[White "Hayabik, Husain"]
[Black "Khayat, Emad"]
[Result "0-1"]
[ECO "C45"]
[WhiteElo "1828"]
[BlackElo "1597"]
[Annotator "NA RC COMBH"]
[PlyCount "57"]
[EventDate "2022.09.29"]
[EventType "swiss"]
[SourceTitle "playchess.com"]
[Source "ChessBase"]
[SourceQuality "1"]
[TimeControl "5400+30"]

{[%evp 8,57,14,19,33,32767,17,32767,32767,-1,12,32767,58,0,0,-12,11,-120,83,31,0,28,32767,32767,68,32767,-295,-333,-347,-376,-402,-395,-416,-435,-504,-478,-487,32767,32767,-909,-1050,32767,32767,32767,0,32767,-1865,-2034,-5672,32767,-29992,-29999]} 1. e4 {[%emt 0:00:04]} e5 {[%emt 0:00:07]} 2. Nf3 {[%emt 0:00:08]} Nc6 {[%emt 0:00:05]} 3. d4 {[%emt 0:00:31]} exd4 {[%emt 0:00:13]} 4. Nxd4 {[%emt 0:00:02]} Qf6 {[%emt 0:00:26]} 5. Be3 {[%emt 0:00:44]} Bc5 {[%emt 0:00:09]} 6. c3 {[%emt 0:01:15]} d6 {[%emt 0:00:11]} 7. Be2 {[%emt 0:00:40]} Qg6 {[%emt 0:00:51]} 8. Bf3 {[%emt 0:01:14]} (8. Nb5 $1 $14 Bxe3 9. Nxc7+ Kd7 10. Nxa8 Qxg2 11. Rf1) 8... Nf6 {[%emt 0:00:52]} 9. Nd2 {[%emt 0:00:21]} O-O {[%emt 0:07:23]} ({Better is} 9... Ne5 $11) 10. h4 {[%emt 0:00:20]} (10. Nxc6 $1 $14 bxc6 11. Bxc5 dxc5 12. Qe2) 10... Ne5 {[%emt 0:06:12]} 11. h5 {[%emt 0:02:24]} Nxf3+ {[%emt 0:00:13]} 12. N4xf3 {[%emt 0:00:05]} (12. Qxf3 $11 {remains equal.} Qg4 13. h6) 12... Nxh5 $2 {[%emt 0:11:37]} (12... Qxg2 $17 {and life is bright.} 13. Rh2 Qg4 14. Bxc5 dxc5) 13. Bxc5 {[%emt 0:00:57]} Nf4 {[%emt 0:04:11]} (13... dxc5 $2 14. Ne5 Qg5 15. Qxh5 $18) 14. Be3 {[%emt 0:02:11]} Nxg2+ {[%emt 0:04:30]} 15. Kf1 {[%emt 0:00:22]} f5 {[%emt 0:05:41]} 16. e5 {[%emt 0:15:39]} f4 {[%emt 0:01:32]} 17. Bd4 {[%emt 0:00:08] [#]} Bf5 $1 {[%emt 0:05:13]} 18. Ne1 {[%emt 0:00:29]} Nxe1 {[%emt 0:04:22]} 19. Kxe1 {[%emt 0:00:18]} dxe5 {[%emt 0:06:26]} 20. Bc5 {[%emt 0:00:21]} Qc6 $1 {[%emt 0:01:48]} 21. Qh5 {[%emt 0:03:12]} ({Inferior is} 21. Qb3+ Be6 22. Qxe6+ Qxe6) 21... Bg6 {[%emt 0:03:24]} 22. Qh2 {[%emt 0:02:53]} Qxc5 {[%emt 0:00:24]} 23. Nb3 {[%emt 0:00:16]} Qc6 {[%emt 0:01:19]} 24. Rd1 {[%emt 0:00:39]} Rf5 {[%emt 0:01:07]} 25. Qg1 {[%emt 0:01:49]} Rff8 $2 {[%emt 0:02:50]} (25... Qe4+ $19 26. Kd2 Rh5 27. Qxg6 hxg6) 26. Rh3 {[%emt 0:00:57]} Qe4+ {[%emt 0:01:33]} 27. Kf1 {[%emt 0:00:47]} f3 $19 {[%emt 0:01:04]} 28. Nc1 {[%emt 0:00:10]} Rad8 {[%emt 0:00:28]} 29. Rh1 {[%emt 1:06:04]} 0-1